fUST/lending_fUST_20240710
["ID","MTS","AMOUNT","RATE_DAILY","PERIOD"]
[331660756,1720608639987,-30000.0,0.00029793,2]
[331660758,1720608639996,-268.65851187,0.00029793,2]
[331660760,1720608640007,-248.95340007,0.000298,120]
[331660762,1720608640016,-175.41119278,0.00029803,2]
[331660764,1720608640025,-813.34941248,0.00029823,17]
[331660767,1720608640035,-880.25528941,0.00029879,2]
[331660769,1720608640045,-468.05129613,0.00029904,2]
[331660771,1720608640054,-403.6290569,0.00029999,2]
[331660773,1720608640063,-403.6290569,0.00029999,2]
[331660776,1720608640073,-170.47875529,0.0003,4]
[331660778,1720608640083,-753.06028908,0.0003,2]
[331660781,1720608640093,-154.72922386,0.0003,4]
[331660783,1720608640103,-450.0,0.0003,120]
[331660784,1720608640112,-500.0,0.0003,3]
[331660786,1720608640122,-235.0,0.0003,2]
[331660789,1720608640132,-155.36732,0.00030052,7]
[331660791,1720608640143,-3212.639602,0.00030052,7]
[331660793,1720608640153,-3212.639602,0.00030052,7]
[331660795,1720608640163,-151.0,0.00030052,7]
[331660797,1720608640173,-14618.44003635,0.00030052,2]
[331660799,1720608640183,-400.0,0.00030103,2]
[331660801,1720608640192,-159.8,0.00030152,3]
[331660804,1720608640202,-150.0,0.00030764,2]
[331660806,1720608640211,-256.73068851,0.00030795,2]
[331660808,1720608640221,-708.24824698,0.00030979,2]
[331660811,1720608640230,-500.0,0.00031,3]
[331660812,1720608640239,-159.8,0.00031076,4]
[331660814,1720608640251,-642.80434729,0.000317,2]
[331660816,1720608640261,-600.0,0.0003188,2]
[331660818,1720608640270,-159.8,0.00031999,4]
[331660820,1720608640281,-500.38242698,0.00032,30]
[331660822,1720608640290,-300.0,0.00032,120]
[331660824,1720608640300,-500.0,0.00032,3]
[331660826,1720608640309,-166.04349824,0.00032229,4]
[331660828,1720608640318,-309.39667648,0.00032229,4]
[331660830,1720608640328,-215.83191418,0.00032229,4]
[331660832,1720608640339,-371.76466957,0.00032229,4]
[331660834,1720608640348,-256.73068851,0.00032248,2]
[331660836,1720608640358,-500.0,0.00032877,7]
[331660838,1720608640368,-500.0,0.00032877,7]
[331660840,1720608640377,-500.0,0.00032877,7]
[331660842,1720608640387,-500.0,0.00032877,7]
[331660844,1720608640397,-500.0,0.00032877,7]
[331660846,1720608640406,-177.655455,0.00032877,7]
[331660848,1720608640416,-159.8,0.00032923,5]
[331660850,1720608640425,-154.83806341,0.0003295,4]
[331660853,1720608640442,-1000.0,0.00033,33]
[331660855,1720608640455,-292.55335768,0.00033,7]
[331660857,1720608640465,-500.0,0.00033,3]
[331660859,1720608640475,-235.0,0.00033,2]
[331660861,1720608640486,-235.0,0.00033,2]
[331660864,1720608640498,-150.0,0.00033069,2]
[331660866,1720608640508,-432.612292,0.00033295,2]
[331660868,1720608640518,-42888.37692498,0.00033333,2]
[331660870,1720608640528,-5292.88975486,0.00033457,2]
[331660872,1720608640538,-154.72922386,0.00033597,4]
[331660874,1720608640548,-154.72922386,0.00033597,4]
[331660876,1720608640557,-503.90846633,0.00033631,2]
[331660878,1720608640567,-366.6405652,0.00033658,2]
[331660880,1720608640577,-256.73068851,0.000337,2]
[331660882,1720608640588,-708.24824698,0.00033763,2]
[331660884,1720608640597,-400.085471,0.0003379,2]
[331660886,1720608640607,-400.085471,0.0003379,2]
[331660888,1720608640618,-151.0,0.0003379,7]
[331660890,1720608640628,-1331.798164,0.0003379,7]
[331660892,1720608640639,-160.358734,0.0003379,7]
[331660894,1720608640649,-1331.798164,0.0003379,7]
[331660896,1720608640659,-349.822759,0.0003379,7]
[331660898,1720608640669,-349.822759,0.0003379,7]
[331660900,1720608640679,-633.374196,0.0003379,7]
[331660902,1720608640689,-167.758636,0.0003379,7]
[331660904,1720608640698,-633.374196,0.0003379,7]
[331660906,1720608640708,-167.758636,0.0003379,7]
[331660908,1720608640718,-257.028744,0.0003379,7]
[331660910,1720608640728,-257.028744,0.0003379,7]
[331660912,1720608640738,-151.0,0.0003379,7]
[331660914,1720608640748,-239.620888,0.0003379,7]
[331660916,1720608640758,-239.620888,0.0003379,7]
[331660918,1720608640767,-185.065834,0.0003379,7]
[331660920,1720608640777,-151.0,0.0003379,7]
[331660922,1720608640786,-185.065834,0.0003379,7]
[331660924,1720608640797,-151.0,0.0003379,7]
[331660926,1720608640807,-398.405799,0.0003379,7]
[331660928,1720608640816,-398.405799,0.0003379,7]
[331660930,1720608640826,-167.650171,0.0003379,7]
[331660932,1720608640835,-228.82113,0.0003379,7]
[331660934,1720608640845,-228.82113,0.0003379,7]
[331660936,1720608640855,-8016.42224663,0.000338,4]
[331660938,1720608640866,-303.32193746,0.000338,4]
[331660940,1720608640876,-406.57143958,0.000338,3]
[331660942,1720608640885,-254.28976292,0.000338,4]
[331660943,1720608640894,-394.11469993,0.000338,30]
[331660944,1720608640905,-2000.0,0.000338,4]
[331660945,1720608640914,-154.71377951,0.000338,7]
[331660946,1720608640924,-5000.0,0.000338,10]
[331660947,1720608640934,-1026.39620554,0.000338,4]
[331660948,1720608640943,-9224.35921246,0.000338,7]
[331660949,1720608640953,-575.49788648,0.000338,4]
[331660950,1720608640964,-184.97176497,0.000338,2]
[331660951,1720608640973,-335.55416588,0.000338,4]
[331660953,1720608640983,-1000.0,0.000338,30]
[331660955,1720608640993,-999.0,0.000338,30]
[331660957,1720608641002,-149249.34025408,0.000338,2]
[331660962,1720608641039,-9621.97492075,0.00016255,2]
[331660964,1720608641049,-159.72145129,0.00029772,2]
[331660966,1720608641059,-153.152185,0.00030052,7]
[331660968,1720608641068,-121000.58528058,0.000338,2]
[331660970,1720608641078,-167995.11630994,0.000338,3]
[331660972,1720608641088,-151.0,0.000338,7]
[331660974,1720608641098,-151.0,0.000338,7]
[331660977,1720608641108,-151.0,0.000338,7]
[331660979,1720608641117,-285.382396,0.000338,7]
[331660981,1720608641127,-151.0,0.000338,7]
[331660983,1720608641136,-151.0,0.000338,7]
[331660985,1720608641146,-151.0,0.000338,7]
[331660987,1720608641156,-151.0,0.000338,7]
[331660989,1720608641165,-1120.00475,0.000338,7]
[331660991,1720608641175,-1120.00475,0.000338,7]
[331660993,1720608641185,-1120.00475,0.000338,7]
[331660995,1720608641194,-1120.00475,0.000338,7]
[331660996,1720608641203,-400.085471,0.000338,2]
[331660999,1720608641213,-400.085471,0.000338,2]
[331661001,1720608641223,-400.085471,0.000338,2]
[331661003,1720608641233,-400.085471,0.000338,2]
[331661005,1720608641242,-151.0,0.000338,7]
[331661007,1720608641251,-151.0,0.000338,7]
[331661009,1720608641260,-1331.798164,0.000338,7]
[331661011,1720608641269,-15100.07629045,0.000338,3]
[331661012,1720608641278,-1331.798164,0.000338,7]
[331661014,1720608641287,-1331.798164,0.000338,7]
[331661017,1720608641300,-1331.798164,0.000338,7]
[331661019,1720608641309,-349.822759,0.000338,7]
[331661021,1720608641319,-349.822759,0.000338,7]
[331661023,1720608641328,-349.822759,0.000338,7]
[331661025,1720608641337,-349.822759,0.000338,7]
[331661027,1720608641347,-633.374196,0.000338,7]
[331661029,1720608641356,-633.374196,0.000338,7]
[331661031,1720608641366,-167.758636,0.000338,7]
[331661033,1720608641376,-167.758636,0.000338,7]
[331661035,1720608641385,-633.374196,0.000338,7]
[331661037,1720608641395,-633.374196,0.000338,7]
[331661039,1720608641405,-167.758636,0.000338,7]
[331661041,1720608641414,-167.758636,0.000338,7]
[331661043,1720608641423,-257.028744,0.000338,7]
[331661045,1720608641433,-257.028744,0.000338,7]
[331661047,1720608641442,-257.028744,0.000338,7]
[331661049,1720608641451,-204.652162,0.000338,7]
[331661051,1720608641461,-239.620888,0.000338,7]
[331661053,1720608641470,-239.620888,0.000338,7]
[331661055,1720608641479,-257.028744,0.000338,7]
[331661057,1720608641489,-239.620888,0.000338,7]
[331661059,1720608641499,-239.620888,0.000338,7]
[331661061,1720608641508,-185.065834,0.000338,7]
[331661063,1720608641518,-185.065834,0.000338,7]
[331661065,1720608641527,-151.0,0.000338,7]
[331661067,1720608641536,-151.0,0.000338,7]
[331661069,1720608641545,-185.065834,0.000338,7]
[331661071,1720608641554,-185.065834,0.000338,7]
[331661073,1720608641564,-151.0,0.000338,7]
[331661075,1720608641573,-151.0,0.000338,7]
[331661077,1720608641584,-398.405799,0.000338,7]
[331661079,1720608641593,-398.405799,0.000338,7]
[331661081,1720608641602,-398.405799,0.000338,7]
[331661083,1720608641611,-398.405799,0.000338,7]
[331661085,1720608641621,-228.82113,0.000338,7]
[331661087,1720608641631,-228.82113,0.000338,7]
[331661089,1720608641641,-228.82113,0.000338,7]
[331661091,1720608641651,-228.82113,0.000338,7]
[331661093,1720608641661,-3212.639602,0.000338,7]
[331661095,1720608641670,-3212.639602,0.000338,7]
[331661097,1720608641679,-3212.639602,0.000338,7]
[331661100,1720608641689,-3212.639602,0.000338,7]
[331661102,1720608641698,-151.0,0.000338,7]
[331661104,1720608641707,-151.0,0.000338,7]
[331661106,1720608641716,-159.8,0.00033847,5]
[331661108,1720608641725,-800.0,0.00033853,2]
[331661109,1720608641734,-24110.91159645,0.00034,5]
[331661111,1720608641744,-1757.82046343,0.00034,120]
[331661114,1720608641754,-38562.71736086,0.00034,2]
[331661117,1720608641763,-250.0,0.00034,120]
[331661118,1720608641773,-5000.0,0.00034,34]
[331661120,1720608641782,-119993.81310401,0.00034,2]
[331661626,1720608646796,-1438.1,0.00034,2]
[331662799,1720609708829,-441.12478,0.00021096,2]
[331663398,1720609839426,-642.80434729,0.00018996,2]
[331663401,1720609839437,-428.33485551,0.00021096,2]
[331663403,1720609839448,-763.93203298,0.00021096,2]
[331663405,1720609839459,-763.93203298,0.00021096,2]
[331663407,1720609839469,-2000.0,0.00021096,2]
[331663409,1720609839480,-6865.55878528,0.00021096,2]
[331663411,1720609839490,-159.72145129,0.00021917,2]
[331663413,1720609839500,-880.25528941,0.00022398,2]
[331663415,1720609839511,-642.80434729,0.00023996,2]
[331663417,1720609839522,-52142.01242753,0.00025501,2]
[331663419,1720609839532,-200.0,0.00025893,2]
[331663421,1720609839543,-1000.0,0.00026,7]
[331663423,1720609839553,-500.0,0.00027,3]
[331663425,1720609839563,-441.12478,0.00027195,2]
[331663441,1720609839718,-400.0,0.00027263,2]
[331663443,1720609839730,-268.65851187,0.00028,2]
[331663445,1720609839739,-500.0,0.00028,3]
[331663447,1720609839749,-188.0,0.00028271,2]
[331663450,1720609839760,-642.80434729,0.00028996,2]
[331663452,1720609839770,-500.0,0.00029,3]
[331663454,1720609839780,-600.0,0.0002904,2]
[331663456,1720609839790,-162.033235,0.00029126,2]
[331663458,1720609839800,-188.0,0.00029198,3]
[331663460,1720609839809,-30000.0,0.00029793,2]
[331663462,1720609839820,-935.07993032,0.00029869,2]
[331663464,1720609839830,-170.47875529,0.0003,4]
[331663466,1720609839840,-500.0,0.0003,3]
[331663468,1720609839850,-156.0,0.0003,2]
[331663470,1720609839860,-188.0,0.00030124,3]
[331663471,1720609839871,-500.0,0.00031,3]
[331663472,1720609839881,-800.0,0.00031012,2]
[331663473,1720609839891,-188.0,0.00031051,4]
[331663474,1720609839900,-188.0,0.00031978,4]
[331663475,1720609839910,-500.38242698,0.00032,30]
[331663476,1720609839920,-799.40583363,0.00032,3]
[331663477,1720609839929,-160.0,0.00032754,3]
[331663478,1720609839939,-2000.0,0.0003289,2]
[331663479,1720609839950,-1180.96116718,0.0003289,2]
[331663480,1720609839960,-188.0,0.00032905,5]
[331663481,1720609839969,-4139.28,0.00032949,3]
[331663482,1720609839979,-4967.14,0.00032959,3]
[331663483,1720609839988,-37477.5654697,0.00032969,4]
[331663484,1720609839998,-214.78657601,0.00032989,7]
[331663485,1720609840010,-500.0,0.00032989,7]
[331663487,1720609840022,-224.23404125,0.00032989,7]
[331663488,1720609840032,-500.0,0.00032989,7]
[331663490,1720609840041,-500.0,0.00032989,7]
[331663492,1720609840051,-500.0,0.00032989,7]
[331663494,1720609840061,-500.0,0.00032989,7]
[331663496,1720609840071,-500.0,0.00032989,7]
[331663498,1720609840081,-500.0,0.00032989,7]
[331663500,1720609840090,-500.0,0.00032989,7]
[331663502,1720609840100,-4506.91903961,0.0003299,5]
[331663504,1720609840110,-74955.1309395,0.0003299,4]
[331663506,1720609840119,-500.0,0.0003299,7]
[331663508,1720609840130,-500.0,0.0003299,7]
[331663510,1720609840140,-500.0,0.0003299,7]
[331663512,1720609840150,-500.0,0.0003299,7]
[331663514,1720609840160,-500.0,0.0003299,7]
[331663516,1720609840170,-177.655455,0.0003299,7]
[331663518,1720609840180,-1000.0,0.00033,33]
[331663519,1720609840190,-64739.46688878,0.00033,2]
[331663601,1720609840972,-36704.74100923,0.00033,2]
[331663603,1720609840983,-292.55335768,0.00033,7]
[331663605,1720609840993,-500.0,0.00033,3]
[331663607,1720609841005,-156.0,0.00033,2]
[331663609,1720609841015,-1000.0,0.00033123,2]
[331663611,1720609841024,-74955.1309395,0.00033213,4]
[331663612,1720609841034,-500.0,0.00033222,7]
[331663614,1720609841043,-500.0,0.00033222,7]
[331663616,1720609841053,-243.35096583,0.00033222,7]
[331663618,1720609841063,-210.91261981,0.00033222,7]
[331663621,1720609841072,-500.0,0.00033222,7]
[331663623,1720609841083,-500.0,0.00033222,7]
[331663624,1720609841092,-281.80073485,0.00033222,7]
[331663627,1720609841102,-88888.0,0.00033223,5]
[331663628,1720609841112,-150.0,0.0003326,2]
[331663630,1720609841122,-117.22742385,0.00033294,60]
[331664522,1720611040305,-162.033235,0.00019178,2]
[331664524,1720611040315,-397.012302,0.00021096,2]
[331664526,1720611040325,-5761.22611928,0.00022941,2]
[331664528,1720611040335,-2400.39571371,0.00022942,2]
[331664530,1720611040346,-52142.01242753,0.00025501,2]
[331664532,1720611040355,-1000.0,0.00026,8]
[331664533,1720611040365,-200.0,0.00027186,2]
[331664535,1720611040375,-1500.0,0.00027194,2]
[331664537,1720611040386,-397.012302,0.00027195,2]
[331664539,1720611040396,-400.0,0.00028556,2]
[331664541,1720611040406,-30000.0,0.00029793,2]
[331664543,1720611040416,-944.76893376,0.00029804,2]
[331664545,1720611040426,-844.60693281,0.00029813,2]
[331664547,1720611040435,-402.60952539,0.0002987,2]
[331664549,1720611040445,-170.47875529,0.0003,4]
[331664551,1720611040455,-209.0,0.0003,2]
[331664553,1720611040465,-600.0,0.00030333,2]
[331664555,1720611040475,-2395.42,0.00030941,3]
[331664557,1720611040485,-2874.5,0.00030951,3]
[331664558,1720611040496,-3449.4,0.00030961,3]
[331664560,1720611040505,-32284.3914609,0.00030971,4]
[331664562,1720611040516,-944.76893373,0.00031001,2]
[331664563,1720611040526,-944.76893373,0.00032197,2]
[331664565,1720611040536,-383.69391706,0.00032305,2]
[331664567,1720611040546,-151.0,0.00032941,5]
[331664569,1720611040556,-305.755912,0.0003295,30]
[331664571,1720611040566,-292.55335768,0.00033,7]
[331664573,1720611040576,-500.0,0.00033,3]
[331664574,1720611040586,-5000.0,0.00033,33]
[331664575,1720611040596,-209.0,0.00033,2]
[331664576,1720611040606,-209.0,0.00033,2]
[331664577,1720611040617,-366.6405652,0.00033013,2]
[331664578,1720611040629,-5292.88975486,0.00033111,2]
[331664579,1720611040638,-500.0,0.00033113,7]
[331664580,1720611040648,-177.655455,0.00033113,7]
[331664581,1720611040659,-14982.38150459,0.00033284,4]
[331664594,1720611044895,-2000.0,0.00032799,2]
[331664595,1720611044905,-804.98871435,0.0003295,4]
[331664596,1720611044916,-3090.3986754,0.00033284,4]
[331664729,1720612232002,-357.311071,0.00021096,2]
[331664731,1720612232013,-198.506168,0.00021096,2]
[331664732,1720612232025,-166.6666691,0.00021918,2]
[331664733,1720612232035,-236.0,0.000255,2]
[331664734,1720612232044,-4780.56358799,0.00025501,2]
[331664757,1720612237937,-47361.44883954,0.00025501,2]
[331664758,1720612237946,-7458.94652043,0.0002649,2]
[331664759,1720612237956,-599.14160025,0.00026848,2]
[331664760,1720612237966,-599.14160025,0.00026848,2]
[331664761,1720612237975,-18957.9585867,0.00027,4]
[331664762,1720612237984,-2157.5,0.00027165,3]
[331664763,1720612237994,-3553.15,0.00027165,3]
[331664764,1720612238004,-32129.8715271,0.00027174,3]
[331664765,1720612238014,-17256.2991322,0.00027184,2]
[331664803,1720612240170,-2960.96,0.00027165,3]
[331664805,1720612240180,-12743.7008678,0.00027184,2]
[331664807,1720612240189,-357.311071,0.00027195,2]
[331664809,1720612240199,-216.730068,0.00027397,120]
[331664811,1720612240208,-1792.19057925,0.0002799,2]
[331664813,1720612240218,-162.14154244,0.00027999,2]
[331664815,1720612240227,-229.31696231,0.00028,30]
[331664817,1720612240237,-1023.84268111,0.00029034,2]
[331664819,1720612240246,-944.76893376,0.00029761,2]
[331664821,1720612240256,-248.95340007,0.000298,120]
[331664823,1720612240265,-191.16817144,0.00029803,2]
[331664825,1720612240274,-813.34941248,0.00029879,17]
[331664827,1720612240284,-200.0,0.000299,2]
[331664829,1720612240293,-170.47875529,0.0003,4]
[331664831,1720612240302,-753.06028908,0.0003,2]
[331664833,1720612240311,-643.66349447,0.0003,4]
[331664835,1720612240323,-174.0,0.0003,2]
[331664837,1720612240333,-944.76893373,0.00030596,2]
[331664839,1720612240342,-500.0,0.00030978,2]
[331664841,1720612240352,-500.0,0.00030978,2]
[331664843,1720612240361,-500.0,0.00030978,2]
[331664845,1720612240370,-500.0,0.00030978,2]
[331664847,1720612240379,-500.0,0.00030978,2]
[331664849,1720612240388,-500.0,0.00030978,2]
[331664851,1720612240398,-500.0,0.00030978,2]
[331664853,1720612240407,-500.0,0.00030978,2]
[331664855,1720612240416,-500.0,0.00030978,2]
[331664857,1720612240426,-500.0,0.00030978,2]
[331664859,1720612240435,-500.0,0.00030978,2]
[331664861,1720612240444,-500.0,0.00030978,2]
[331664863,1720612240453,-500.0,0.00030978,2]
[331664865,1720612240462,-500.0,0.00030978,2]
[331664867,1720612240471,-500.0,0.00030978,2]
[331664869,1720612240481,-500.0,0.00030978,2]
[331664871,1720612240490,-500.0,0.00030978,2]
[331664873,1720612240499,-500.0,0.00030978,2]
[331664875,1720612240508,-500.0,0.00030978,2]
[331664877,1720612240517,-500.0,0.00030978,2]
[331664879,1720612240527,-500.0,0.00030978,2]
[331664881,1720612240537,-500.0,0.00030978,2]
[331664883,1720612240547,-2253.4595198,0.00030979,5]
[331664885,1720612240556,-24110.91159645,0.00030979,5]
[331664887,1720612240567,-32129.8715271,0.0003098,4]
[331664889,1720612240577,-66009.66086595,0.0003099,4]
[331665386,1720612247402,-293.51863292,0.00029772,2]
[331665387,1720612247411,-6709.48136708,0.0003099,4]
[331665389,1720612247423,-6133.90676933,0.0003099,4]
[331665391,1720612247435,-6703.06069526,0.0003099,4]
[331665394,1720612247448,-2511.76095789,0.0003099,4]
[331665510,1720613403703,5503.49557759,0.00016255,2]
[331665905,1720613440259,-3882.4307496,0.00018799,2]
[331665907,1720613440270,-331.505272,0.00021096,2]
[331665909,1720613440280,-162.033235,0.0002544,2]
[331665911,1720613440289,-52142.01242753,0.00025501,2]
[331665913,1720613440299,-30000.0,0.00027184,2]
[331665915,1720613440309,-331.505272,0.00027195,2]
[331665917,1720613440318,-1000.0,0.00029,9]
[331665919,1720613440327,-525.56960238,0.00029803,2]
[331665921,1720613440337,-880.25528941,0.00029803,2]
[331665923,1720613440347,-403.6290569,0.0002987,2]
[331665925,1720613440357,-175.41119278,0.00029901,2]
[331665927,1720613440366,-200.0,0.0002995,2]
[331665929,1720613440376,-468.05129613,0.00029979,2]
[331665931,1720613440386,-170.47875529,0.0003,4]
[331665933,1720613440396,-471.68236775,0.0003,4]
[331665935,1720613440407,-1000.0,0.0003,30]
[331665937,1720613440416,-300.0,0.0003,120]
[331665939,1720613440427,-210.0,0.0003,2]
[331665941,1720613440437,-503.90846633,0.00030619,2]
[331665943,1720613440446,-2467.47,0.00030673,3]
[331665945,1720613440456,-2513.58940995,0.00030683,4]
[331665947,1720613440468,-999.9933705,0.00030683,4]
[331666665,1720613490135,2652.6391176,0.00016255,2]
[331666701,1720613604489,166.81585804,0.00016255,2]
[331666745,1720613695122,1192.20576942,0.000271,20]
[331666746,1720613714541,525.56960238,0.00016255,2]
[331666791,1720613987141,844.60693281,0.00016255,2]
[331666803,1720614167643,844.60693281,0.00016255,2]
[331666825,1720614520662,844.60693281,0.00016255,2]
[331666830,1720614579541,1000.0,0.00025,25]
[331666835,1720614616518,1000.0,0.00027,27]
[331666851,1720614632667,-844.60693281,0.00019164,2]
[331666852,1720614632677,-331.505272,0.00021096,2]
[331666853,1720614632687,-1017.01787939,0.0002217,2]
[331666854,1720614632696,-403.6290569,0.00022941,2]
[331666855,1720614632705,-187.7887475,0.00025204,2]
[331666856,1720614632715,-2467.56018314,0.00025501,2]
[331666975,1720614638458,-844.60693281,0.00019164,2]
[331666976,1720614638480,-8270.71834107,0.00025501,2]
[331666977,1720614638543,-399.9860303,0.00025501,2]
[331667059,1720614640676,-41003.74787302,0.00025501,2]
[331667061,1720614640687,-2000.0,0.000271,2]
[331667063,1720614640696,-30000.0,0.00027184,2]
[331667065,1720614640706,-371.76466957,0.00027184,2]
[331667067,1720614640716,-162.033235,0.00027192,2]
[331667070,1720614640725,-309.39667648,0.00027194,2]
[331667073,1720614640735,-154.72922386,0.00027194,2]
[331667076,1720614640744,-331.505272,0.00027195,2]
[331667078,1720614640754,-175.41119278,0.000274,2]
[331667080,1720614640763,-215.83191418,0.00027999,2]
[331667082,1720614640773,-1500.0,0.00027999,2]
[331667084,1720614640783,-500.0,0.00028,3]
[331667086,1720614640792,-504.14304756,0.00028,2]
[331667088,1720614640802,-500.0,0.00029,3]
[331667090,1720614640813,-540.0,0.00029861,2]
[331667092,1720614640823,-935.07993032,0.00029903,2]
[331667094,1720614640832,-159.72145129,0.00029904,2]
[331667096,1720614640841,-525.56960238,0.00029979,2]
[331667098,1720614640851,-525.56960238,0.00029979,2]
[331667100,1720614640861,-170.47875529,0.0003,4]
[331667102,1720614640872,-154.72922386,0.0003,4]
[331667104,1720614640882,-500.0,0.0003,3]
[331667106,1720614640891,-5000.0,0.0003,30]
[331667108,1720614640901,-180.0,0.0003,2]
[331667110,1720614640910,-3256.50210558,0.0003,4]
[331667112,1720614640919,-2000.0,0.00030042,2]
[331667114,1720614640929,-912.6008975,0.00030063,2]
[331667116,1720614640939,-1668.2869704,0.00030142,5]
[331667839,1720615040901,4038.95701504,0.00015,2]
[331667847,1720615163774,569.40009292,0.00016255,2]
[331667856,1720615435851,162.14154244,0.00016255,2]
[331667857,1720615438042,215.83191418,0.00016255,2]
[331667858,1720615438452,309.39667648,0.00016255,2]
[331667863,1720615533362,525.56960238,0.00016255,2]
[331667866,1720615665612,935.07993032,0.00016255,2]
[331667870,1720615735808,525.56960238,0.00016255,2]
[331667871,1720615746150,-399.14468791,0.00016732,2]
[331667872,1720615746181,-159.46819219,0.00016832,2]
[331667883,1720615832730,-525.56960238,0.00019703,2]
[331667884,1720615832739,-562.16675623,0.00020402,2]
[331667885,1720615832749,-212.29647738,0.00020402,2]
[331667886,1720615832758,-332.795562,0.00021096,2]
[331667887,1720615832769,-540.0,0.0002243,2]
[331667888,1720615832779,-162.033235,0.00023152,2]
[331667889,1720615832788,-880.25528941,0.00023453,2]
[331667891,1720615832798,-1500.0,0.00023453,2]
[331667893,1720615832807,-1023.84268118,0.00025401,2]
[331667894,1720615832817,-17895.86505402,0.00025501,2]
[331668183,1720615840938,-34246.14737351,0.00025501,2]
[331668185,1720615840948,-478.22272388,0.00025501,2]
[331668187,1720615840959,-154.72922386,0.00025869,2]
[331668189,1720615840969,-154.83806341,0.00025869,2]
[331668191,1720615840978,-844.60693281,0.00025869,2]
[331668193,1720615840987,-844.60693281,0.00025869,2]
[331668195,1720615840996,-159.72145129,0.00025902,2]
[331668197,1720615841006,-187.7887475,0.00026574,2]
[331668199,1720615841015,-30000.0,0.00027184,2]
[331668202,1720615841025,-332.795562,0.00027195,2]
[331668204,1720615841036,-216.730068,0.00027397,120]
[331668206,1720615841047,-175.41119278,0.00027999,2]
[331668208,1720615841057,-229.31696231,0.00028,30]
[331668209,1720615841068,-268.65851187,0.00028,2]
[331668212,1720615841078,-200.47096305,0.00028,2]
[331668213,1720615841087,-1023.84268111,0.00028187,2]
[331668215,1720615841096,-500.0,0.00029,3]
[331668218,1720615841106,-5292.88975486,0.00029642,2]
[331668219,1720615841115,-2288.27,0.00029688,3]
[331668222,1720615841124,-1290.21,0.00029698,3]
[331668223,1720615841133,-2745.93,0.00029698,3]
[331668225,1720615841143,-2000.0,0.00029705,2]
[331668227,1720615841152,-1290.50847099,0.00029705,2]
[331668230,1720615841161,-237.941787,0.0002976,7]
[331668232,1720615841171,-237.941787,0.0002976,7]
[331668234,1720615841180,-151.0,0.0002976,7]
[331668236,1720615841188,-151.0,0.0002976,7]
[331668238,1720615841198,-3573.817776,0.0002976,7]
[331668240,1720615841207,-3573.817776,0.0002976,7]
[331668241,1720615841216,-151.0,0.0002976,7]
[331668244,1720615841226,-24110.91159645,0.0002976,5]
[331668245,1720615841235,-349.822759,0.0002976,7]
[331668247,1720615841245,-29826.2340564,0.0002976,3]
[331668249,1720615841254,-500.0,0.00029794,2]
[331668252,1720615841263,-500.0,0.00029794,2]
[331668253,1720615841272,-500.0,0.00029794,2]
[331668255,1720615841285,-500.0,0.00029794,2]
[331668258,1720615841295,-500.0,0.00029794,2]
[331668259,1720615841304,-500.0,0.00029794,2]
[331668261,1720615841313,-500.0,0.00029794,2]
[331668263,1720615841322,-500.0,0.00029794,2]
[331668276,1720615841448,-500.0,0.00029794,2]
[331668278,1720615841459,-500.0,0.00029794,2]
[331668280,1720615841468,-500.0,0.00029794,2]
[331668282,1720615841476,-500.0,0.00029794,2]
[331668284,1720615841486,-500.0,0.00029794,2]
[331668286,1720615841495,-189.48656701,0.00029794,2]